Body Name,Body,Service Level,Expense Type,Expense Code,Narrative,Date,Transaction Number,Amount,Capital and Revenue,Supplier Name,Supplier ID
South Ribble Borough Council,http://statistics.data.gov.uk/id/local-authority/30UE,Central Support Services,Members Subsistence,4621,Works in default for clearance of waste at rear of ADDRESS REDACTED,28/02/2024,496284,844.65,Revenue,3d Environmental Ltd T/A 4DENV,0
South Ribble Borough Council,http://statistics.data.gov.uk/id/local-authority/30UE,Capital,Cap Contract Payment,C230,TRO signage - Direct purchase (livery to be sprayed by SRBC),07/02/2024,495696,1150,Revenue,A1 Traffic Safety Ltd,0
South Ribble Borough Council,http://statistics.data.gov.uk/id/local-authority/30UE,Community Safety Services,Maintenance & Repair,4013,"Maintenance of the CCTV 05.01.24-04.01.25, Kit no longer at location, Credit Note 54230481 issued",14/02/2024,495988,533.79,Revenue,ADT FIRE & SECURITY PLC,0
South Ribble Borough Council,http://statistics.data.gov.uk/id/local-authority/30UE,Capital,Cap Contract Payment,C230,"Bamber Bridge PSDS, Decarbonisation Works - Valuation 12 - Final works, Overspend as per agreement with NAME REDACTED",28/02/2024,496214,45721.25,Revenue,Alliance Leisure Services Limited,0
South Ribble Borough Council,http://statistics.data.gov.uk/id/local-authority/30UE,Central Support Services,Agency Staff,1121,NAME REDACTED w/e 21/01/2024 - Week 42,21/02/2024,495960,5873.07,Revenue,ALS Managed Services Ltd,0
South Ribble Borough Council,http://statistics.data.gov.uk/id/local-authority/30UE,Central Support Services,Agency Staff,1121,NAME REDACTED w/e 14/01/2024 - Week 41,21/02/2024,495989,10426.22,Revenue,ALS Managed Services Ltd,0
South Ribble Borough Council,http://statistics.data.gov.uk/id/local-authority/30UE,Central Support Services,Agency Staff,1121,NAME REDACTED w/e 28/01/2024 - Week 43,28/02/2024,496295,4786.39,Revenue,ALS Managed Services Ltd,0
South Ribble Borough Council,http://statistics.data.gov.uk/id/local-authority/30UE,Central Support Services,Agency Staff,1121,NAME REDACTED w/e 04/02/2024 - Week 44,28/02/2024,496488,6379.32,Revenue,ALS Managed Services Ltd,0
South Ribble Borough Council,http://statistics.data.gov.uk/id/local-authority/30UE,Recreation & Sport,Reactive Repair & Maintenance,2020,Additional External Roofing Works at Leyland Leisure Centre as per NAME REDACTED request,07/02/2024,495447,2990,Revenue,AMS Cladding,0
South Ribble Borough Council,http://statistics.data.gov.uk/id/local-authority/30UE,Community Development,Miscellaneous Expenses,4851,0,21/02/2024,496190,500,Revenue,Anastasiia Teslenko,0
South Ribble Borough Council,http://statistics.data.gov.uk/id/local-authority/30UE,Community Development,Miscellaneous Expenses,4851,0,21/02/2024,496184,500,Revenue,Angela Nolan,0
South Ribble Borough Council,http://statistics.data.gov.uk/id/local-authority/30UE,Capital,Capital Grant,C570,DFG WORK FOR ADAPTATION FOR REMEDIAL WORKS FOR BIO BIDET INSTALLATION AT ADDRESS REDACTED AS PER QUOTE SUPPLIED OF ,21/02/2024,496109,504,Revenue,APG DOMESTIC SERVICES,0
South Ribble Borough Council,http://statistics.data.gov.uk/id/local-authority/30UE,Central Support Services,Engineering Inspection Insurance,1802,"SRBC Engineering Inspection insurance 2024 period, , 4324.88 + IPT@ 864.98 = 5189.86",14/02/2024,495964,4324.88,Revenue,Arthur J. Gallagher,0
South Ribble Borough Council,http://statistics.data.gov.uk/id/local-authority/30UE,Central Support Services,Engineering Inspection Insurance,1802,"SRBC Engineering Insurance Premium 2024 period, , 701.46+ IPT @ 84.18 = 785.65",14/02/2024,495993,785.64,Revenue,Arthur J. Gallagher,0
South Ribble Borough Council,http://statistics.data.gov.uk/id/local-authority/30UE,Central Support Services,Terrorism Insurance,2813,"SRBC Terrorism Policy 1/1/24-31/12/24, 7015.25 + IPT of 841.83 = 7857.08",14/02/2024,495994,7857.08,Revenue,Arthur J. Gallagher,0
South Ribble Borough Council,http://statistics.data.gov.uk/id/local-authority/30UE,Central Support Services,Personal Accident & Travel,1803,"SRBC PA and Travel Insurance Premium 2024 period, , 1321.00 + IPT @ 158.52 = 1479.52",14/02/2024,495995,1479.52,Revenue,Arthur J. Gallagher,0
South Ribble Borough Council,http://statistics.data.gov.uk/id/local-authority/30UE,Central Support Services,Motor Fleet Policy,3611,"SRBC Motor Trade Insurance Policy 2024 period, , 4473.00 + IPT @ 536.76 = 5009.76",14/02/2024,495996,5009.76,Revenue,Arthur J. Gallagher,0
South Ribble Borough Council,http://statistics.data.gov.uk/id/local-authority/30UE,Central Support Services,Motor Fleet Policy,3611,"SRBC Motor Fleet Insurance premium 2024 period, , 73,646.99 + IPT @ 8,837.64 = 82,484.63",14/02/2024,495997,82484.63,Revenue,Arthur J. Gallagher,0
South Ribble Borough Council,http://statistics.data.gov.uk/id/local-authority/30UE,Central Support Services,Combined Liability,1801,"SRBC Combined Liability Policy 01/01/2024 - 31/12/2024, 216,093.66 + IPT 25,931.24 = 242,024.90",14/02/2024,495998,242024.9,Revenue,Arthur J. Gallagher,0
South Ribble Borough Council,http://statistics.data.gov.uk/id/local-authority/30UE,Central Support Services,Property Insurance,2811,"SRBC - Property Damage insurance 2024 period, 95,641.46 + IPT @ 11,476.98 = 107,118.44",28/02/2024,495999,107118.44,Revenue,Arthur J. Gallagher,0
South Ribble Borough Council,http://statistics.data.gov.uk/id/local-authority/30UE,Central Support Services,Fidelity Guarantee,1800,"SRBC AJG Broker Fee 2024 Renewal, 840.00",14/02/2024,496000,840,Revenue,Arthur J. Gallagher,0
South Ribble Borough Council,http://statistics.data.gov.uk/id/local-authority/30UE,Capital,Cap Contract Payment,C230,"To provide a bus shelter at 5754 as spec agreed, to install the shelter at the agreed location at 625 and delivery at 120, A t",07/02/2024,495702,6499,Revenue,Autocross Euroshel Limited,0
South Ribble Borough Council,http://statistics.data.gov.uk/id/local-authority/30UE,Short Term Creditors,Amount Paid,30,28-Dec-23,29/02/2024,495742,11952.22,Revenue,Barclays Bank Plc,0
South Ribble Borough Council,http://statistics.data.gov.uk/id/local-authority/30UE,Short Term Creditors,Amount Paid,30,28-Nov-23,29/02/2024,495743,19716.97,Revenue,Barclays Bank Plc,0
South Ribble Borough Council,http://statistics.data.gov.uk/id/local-authority/30UE,Short Term Creditors,Amount Paid,30,28-Jan-24,29/02/2024,496367,12246.96,Revenue,Barclays Bank Plc,0
South Ribble Borough Council,http://statistics.data.gov.uk/id/local-authority/30UE,Housing Advice,Contributions to Other Bodies,4730,AFFORDABLE WARMTH SCHEME FOR INSULATION WORKS AT ADDRESS REDACTED AS PER QUOTE SUPPLIED OF 835.00 INC VAT,21/02/2024,496160,835,Revenue,Bartons of Duke Street Ltd,0
South Ribble Borough Council,http://statistics.data.gov.uk/id/local-authority/30UE,Homelessness,Temporary Accommodation,5311,PO to be raised for Section 188 statutory duty homelessness placements (emergency accommodation) bookings required throughout Jan,28/02/2024,496538,2620,Revenue,Bay Roomz Ltd,0
South Ribble Borough Council,http://statistics.data.gov.uk/id/local-authority/30UE,Open Spaces,GM Refurbishment,4657,External lights at farmyard cottages,07/02/2024,495454,600,Revenue,BELEC ELECTRICAL LTD,0
South Ribble Borough Council,http://statistics.data.gov.uk/id/local-authority/30UE,Capital,Cap Contract Payment,C230,SRBC- ESTIMATE- WALLED GARDEN POT HOUSE POWER,07/02/2024,495691,980,Revenue,BELEC ELECTRICAL LTD,0
South Ribble Borough Council,http://statistics.data.gov.uk/id/local-authority/30UE,Surplus or Deficit on Trading,Reactive Repair & Maintenance,2020,"Electrical Inspection condition report undertaken at ADDRESS REDACTED., Distribution board upgrade and various works. , Order as p",07/02/2024,495692,682.84,Revenue,BELEC ELECTRICAL LTD,0
South Ribble Borough Council,http://statistics.data.gov.uk/id/local-authority/30UE,Recreation & Sport,Reactive Repair & Maintenance,2020,Full kitchen re-wire. All work requested by NAME REDACTED following community grant for kitchen upgrade. As per quote SRBC/24/05 at ,14/02/2024,495877,1556.8,Revenue,BELEC ELECTRICAL LTD,0
South Ribble Borough Council,http://statistics.data.gov.uk/id/local-authority/30UE,Surplus or Deficit on Trading,Reactive Repair & Maintenance,2020,New smoke alarm system and 2 additional emergency lights and 1 emergency light swap at exit all work as per quote - BELEC/24/06/H,14/02/2024,495877,864,Revenue,BELEC ELECTRICAL LTD,0
South Ribble Borough Council,http://statistics.data.gov.uk/id/local-authority/30UE,Surplus or Deficit on Trading,Reactive Repair & Maintenance,2020,"Goods to be ordered:, Install supply for Hot water Tank as per, quote SRBC/23/58 at Worden hall, barn �old folly coffee shop�, Le",14/02/2024,495877,501.59,Revenue,BELEC ELECTRICAL LTD,0
South Ribble Borough Council,http://statistics.data.gov.uk/id/local-authority/30UE,Surplus or Deficit on Trading,Reactive Repair & Maintenance,2020,Work required to install new electric roller shutter motor. Where none exists at present. Work agreed with NAME REDACTED. Quote - SRBC/23,14/02/2024,495877,1284,Revenue,BELEC ELECTRICAL LTD,0
South Ribble Borough Council,http://statistics.data.gov.uk/id/local-authority/30UE,Surplus or Deficit on Trading,Reactive Repair & Maintenance,2020,Roller shutter door supply Service EICR and test report to be sent via pdf at ADDRESS REDACTED as per quote SRBC/23/56 as per NAME REDACTED,28/02/2024,496203,544.8,Revenue,BELEC ELECTRICAL LTD,0
South Ribble Borough Council,http://statistics.data.gov.uk/id/local-authority/30UE,Central Support Services,Lancashire Payroll Service,4531,Payroll ad hoc charges 2023/24,14/02/2024,495503,9056.19,Revenue,Blackpool Council,0
South Ribble Borough Council,http://statistics.data.gov.uk/id/local-authority/30UE,Short Term Creditors,Amount Paid,30,Blues and Twos - Jan 24 Deductions from Payroll,14/02/2024,495942,6584,Revenue,Blues and Twos Credit Union,0
South Ribble Borough Council,http://statistics.data.gov.uk/id/local-authority/30UE,Community Development,Professional Fees,4510,"HAF Delivery Winter 23/24, 122 places booked @ 5 each = 610, , Total = 610 ex VAT",07/02/2024,495679,610,Revenue,Box Clever CIC,0
South Ribble Borough Council,http://statistics.data.gov.uk/id/local-authority/30UE,Capital,Cap Contract Payment,C230,"NFM Iddons Site - Quin Street, Leyland, EAI 008 - Hoardings",21/02/2024,496061,41662.48,Revenue,Bradley Demolition Limited,0
South Ribble Borough Council,http://statistics.data.gov.uk/id/local-authority/30UE,Capital,Cap Contract Payment,C230,EAI 007 - Additional Asbestos Removal,21/02/2024,496120,26452,Revenue,Bradley Demolition Limited,0
South Ribble Borough Council,http://statistics.data.gov.uk/id/local-authority/30UE,Capital,Cap Contract Payment,C230,EAI 007 - Additional Asbestos Removal,21/02/2024,496159,20812,Revenue,Bradley Demolition Limited,0
South Ribble Borough Council,http://statistics.data.gov.uk/id/local-authority/30UE,Community Development,External Catering Charges,4575,"HAF Winter Catering - 28th & 29th Dec 23 & 2nd to 5th Jan 24, Lunches @ 5 each, Week 1		, Thursday x90 = 414.00, Friday x90 = �",21/02/2024,495623,1963.9,Revenue,BROTHERS OF CHARITY SERVICES,0
South Ribble Borough Council,http://statistics.data.gov.uk/id/local-authority/30UE,Central Support Services,Materials General,4040,"DERBY SLIMLINE LITTER BIN WITH ASHTRAY (BLACK) , BX45 2596",07/02/2024,495793,5750,Revenue,BROXAP LTD,0
South Ribble Borough Council,http://statistics.data.gov.uk/id/local-authority/30UE,Recreation & Sport,Materials General,4040,"x10 Shelving units, 1220mmx450mmx1830mm, , Total = 1,072.53 ex vat",28/02/2024,496501,1072.53,Revenue,C & W BERRY LTD,0
South Ribble Borough Council,http://statistics.data.gov.uk/id/local-authority/30UE,Capital,Cap Contract Payment,C230,"Main Contract - Jubilee Gardens Extra Care, West Paddock, Leyland Construction Contract for Extra Care Facility Instruction as pe",28/02/2024,496449,569806.47,Revenue,Caddick Construction (NW) Ltd,0
South Ribble Borough Council,http://statistics.data.gov.uk/id/local-authority/30UE,Central Support Services,Agency Staff,1121,Planning consultant NAME REDACTED Cuerdale Garden Village application,07/02/2024,495695,2415,Revenue,CAPITA PROPERTY AND INFRASTRUCTURE LTD,0
South Ribble Borough Council,http://statistics.data.gov.uk/id/local-authority/30UE,Central Support Services,Agency Staff,1121,Consultancy fees for NAME REDACTED for the Planning application at Cowells Farm - Logik,07/02/2024,495796,5214,Revenue,CAPITA PROPERTY AND INFRASTRUCTURE LTD,0
South Ribble Borough Council,http://statistics.data.gov.uk/id/local-authority/30UE,Central Support Services,Agency Staff,1121,Consultancy fees for NAME REDACTED for the Planning application at Cowells Farm - Logik,28/02/2024,496482,618,Revenue,CAPITA PROPERTY AND INFRASTRUCTURE LTD,0
South Ribble Borough Council,http://statistics.data.gov.uk/id/local-authority/30UE,Central Support Services,Agency Staff,1121,Planning consultant NAME REDACTED Cuerdale Garden Village application,28/02/2024,496490,598,Revenue,CAPITA PROPERTY AND INFRASTRUCTURE LTD,0
South Ribble Borough Council,http://statistics.data.gov.uk/id/local-authority/30UE,Community Development,Professional Fees,4510,"HAF Delivery Winter 23/24 - 80 places, Lunches @ 5 each = 400, Half payment of 80 places @ 5 each = 400, 33 places booked @ �",07/02/2024,495626,800,Revenue,Carr Manor Nursery,0
South Ribble Borough Council,http://statistics.data.gov.uk/id/local-authority/30UE,Recreation & Sport,Licences Fee General,488B,QTR 4 23/24,14/02/2024,495933,1125,Revenue,Carr Street Community Centre,0
South Ribble Borough Council,http://statistics.data.gov.uk/id/local-authority/30UE,Central Support Services,Materials General,4040,4000 litres of Adblue @ 0.39ppl,28/02/2024,496285,1482,Revenue,CGN Limited,0
South Ribble Borough Council,http://statistics.data.gov.uk/id/local-authority/30UE,Capital,Cap Professional Fees,C210,"Leyland Town Deal, Legal Advice involving , , �	Site wide title checks, �	Public Realm licenses, �	Market refurbishment,",21/02/2024,495855,8000,Revenue,Chadwick Lawrence Solicitors LLP,0
South Ribble Borough Council,http://statistics.data.gov.uk/id/local-authority/30UE,Capital,Cap Professional Fees,C210,"Leyland Town Deal, Legal Advice involving , , �	Site wide title checks, �	Public Realm licenses, �	Market refurbishment,",28/02/2024,496293,643.94,Revenue,Chadwick Lawrence Solicitors LLP,0
South Ribble Borough Council,http://statistics.data.gov.uk/id/local-authority/30UE,Community Development,Professional Fees,4510,"Cinderella Gold Panto, Date of Show: Friday, 5th January 2024, Outstanding Fee 1,492.10, , Total = 1,492.10 ex vat",07/02/2024,495484,1492.1,Revenue,Chaplins Entertainment Ltd,0
South Ribble Borough Council,http://statistics.data.gov.uk/id/local-authority/30UE,Regulatory Services,Analyst Fee,4542,South Ribble Share of join procurement of Earthsense air quality public portal,14/02/2024,493676,4000,Revenue,CHORLEY BOROUGH COUNCIL,0
South Ribble Borough Council,http://statistics.data.gov.uk/id/local-authority/30UE,Corporate Management,Corporate Training,1405,Graduate Development Programme 22/23 recharge,14/02/2024,495940,1531,Revenue,CHORLEY BOROUGH COUNCIL,0
South Ribble Borough Council,http://statistics.data.gov.uk/id/local-authority/30UE,Corporate Management,Miscellaneous Expenses,4851,Quarter 3 Recharges 2023/24,14/02/2024,496008,716367.93,Revenue,CHORLEY BOROUGH COUNCIL,0
South Ribble Borough Council,http://statistics.data.gov.uk/id/local-authority/30UE,Central Support Services,Materials General,4040,"Windscreen, VIN REDACTED, JFC 21208",14/02/2024,495974,547.23,Revenue,CICELEY COMMERCIALS LTD,0
South Ribble Borough Council,http://statistics.data.gov.uk/id/local-authority/30UE,Economic Development,Operational Equip & Tools,4010,Leyland Light Switch on project,28/02/2024,494821,6394.8,Revenue,City Illuiminations Ltd,0
South Ribble Borough Council,http://statistics.data.gov.uk/id/local-authority/30UE,Economic Development,Operational Equip & Tools,4010,Leyland Light Switch on project,28/02/2024,495296,4263.2,Revenue,City Illuiminations Ltd,0
South Ribble Borough Council,http://statistics.data.gov.uk/id/local-authority/30UE,Community Development,Professional Fees,4510,"HAF Delivery Winter 23/24 - 240 places, Lunches @ 5 each = 1,200, Half payment of 240 places @ 5 each = 1,200, 197 places boo",07/02/2024,495545,3385,Revenue,Community Network and Outreach,0
South Ribble Borough Council,http://statistics.data.gov.uk/id/local-authority/30UE,Central Support Services,Busy Bees,1409,missing inv 2018-20,29/02/2024,495563,6343.49,Revenue,COMPUTERSHARE VOUCHER SERVICES,0
South Ribble Borough Council,http://statistics.data.gov.uk/id/local-authority/30UE,Central Support Services,Computer Equipment,4241,CCTV INSTALLATION AS PER ASSET TYPE 4 X18 RVC TOO BE INSTALLED AT SOUTH RIBBLE DEPOT AS AGREED WITH NAME REDACTED TO BE INSTALLE,14/02/2024,495797,1604.56,Revenue,Contel LTD,0
South Ribble Borough Council,http://statistics.data.gov.uk/id/local-authority/30UE,Central Support Services,Computer Equipment,4241,CCTV INSTALLATION AS PER ASSET TYPE 4 X18 RVC TOO BE INSTALLED AT SOUTH RIBBLE DEPOT AS AGREED WITH NAME REDACTED TO BE INSTALLE,14/02/2024,495885,1604.56,Revenue,Contel LTD,0
South Ribble Borough Council,http://statistics.data.gov.uk/id/local-authority/30UE,Central Support Services,Computer Equipment,4241,CCTV INSTALLATION AS PER ASSET TYPE 4 X18 RVC TOO BE INSTALLED AT SOUTH RIBBLE DEPOT AS AGREED WITH NAME REDACTED TO BE INSTALLE,14/02/2024,495886,1604.56,Revenue,Contel LTD,0
South Ribble Borough Council,http://statistics.data.gov.uk/id/local-authority/30UE,Central Support Services,Computer Equipment,4241,CCTV INSTALLATION AS PER ASSET TYPE 4 X18 RVC TOO BE INSTALLED AT SOUTH RIBBLE DEPOT AS AGREED WITH NAME REDACTED TO BE INSTALLE,14/02/2024,495887,1604.56,Revenue,Contel LTD,0
South Ribble Borough Council,http://statistics.data.gov.uk/id/local-authority/30UE,Central Support Services,Computer Equipment,4241,CCTV INSTALLATION AS PER ASSET TYPE 4 X18 RVC TOO BE INSTALLED AT SOUTH RIBBLE DEPOT AS AGREED WITH NAME REDACTED TO BE INSTALLE,14/02/2024,496010,1604.56,Revenue,Contel LTD,0
South Ribble Borough Council,http://statistics.data.gov.uk/id/local-authority/30UE,Central Support Services,Computer Equipment,4241,CCTV INSTALLATION AS PER ASSET TYPE 4 X18 RVC TOO BE INSTALLED AT SOUTH RIBBLE DEPOT AS AGREED WITH NAME REDACTED TO BE INSTALLE,14/02/2024,496011,1604.56,Revenue,Contel LTD,0
South Ribble Borough Council,http://statistics.data.gov.uk/id/local-authority/30UE,Central Support Services,Computer Equipment,4241,CCTV INSTALLATION AS PER ASSET TYPE 4 X18 RVC TOO BE INSTALLED AT SOUTH RIBBLE DEPOT AS AGREED WITH NAME REDACTED TO BE INSTALLE,14/02/2024,496012,1604.56,Revenue,Contel LTD,0
South Ribble Borough Council,http://statistics.data.gov.uk/id/local-authority/30UE,Central Support Services,Computer Equipment,4241,CCTV INSTALLATION AS PER ASSET TYPE 4 X18 RVC TOO BE INSTALLED AT SOUTH RIBBLE DEPOT AS AGREED WITH NAME REDACTED TO BE INSTALLE,14/02/2024,496013,1604.56,Revenue,Contel LTD,0
South Ribble Borough Council,http://statistics.data.gov.uk/id/local-authority/30UE,Central Support Services,Computer Equipment,4241,CCTV INSTALLATION AS PER ASSET TYPE 4 X18 RVC TOO BE INSTALLED AT SOUTH RIBBLE DEPOT AS AGREED WITH NAME REDACTED TO BE INSTALLE,28/02/2024,496071,1604.56,Revenue,Contel LTD,0
South Ribble Borough Council,http://statistics.data.gov.uk/id/local-authority/30UE,Central Support Services,Computer Equipment,4241,CCTV INSTALLATION AS PER ASSET TYPE 4 X18 RVC TOO BE INSTALLED AT SOUTH RIBBLE DEPOT AS AGREED WITH NAME REDACTED TO BE INSTALLE,28/02/2024,496155,1604.56,Revenue,Contel LTD,0
South Ribble Borough Council,http://statistics.data.gov.uk/id/local-authority/30UE,Central Support Services,Computer Equipment,4241,CCTV INSTALLATION AS PER ASSET TYPE 4 X18 RVC TOO BE INSTALLED AT SOUTH RIBBLE DEPOT AS AGREED WITH NAME REDACTED TO BE INSTALLE,28/02/2024,496278,1604.56,Revenue,Contel LTD,0
South Ribble Borough Council,http://statistics.data.gov.uk/id/local-authority/30UE,Central Support Services,Computer Equipment,4241,CCTV INSTALLATION AS PER ASSET TYPE 4 X18 RVC TOO BE INSTALLED AT SOUTH RIBBLE DEPOT AS AGREED WITH NAME REDACTED TO BE INSTALLE,28/02/2024,496317,1604.56,Revenue,Contel LTD,0
South Ribble Borough Council,http://statistics.data.gov.uk/id/local-authority/30UE,Central Support Services,Computer Equipment,4241,CCTV INSTALLATION AS PER ASSET TYPE 4 X18 RVC TOO BE INSTALLED AT SOUTH RIBBLE DEPOT AS AGREED WITH NAME REDACTED TO BE INSTALLE,28/02/2024,496392,1604.56,Revenue,Contel LTD,0
South Ribble Borough Council,http://statistics.data.gov.uk/id/local-authority/30UE,Central Support Services,Computer Equipment,4241,CCTV INSTALLATION AS PER ASSET TYPE 4 X18 RVC TOO BE INSTALLED AT SOUTH RIBBLE DEPOT AS AGREED WITH NAME REDACTED TO BE INSTALLE,28/02/2024,496393,1604.56,Revenue,Contel LTD,0
South Ribble Borough Council,http://statistics.data.gov.uk/id/local-authority/30UE,Central Support Services,Computer Equipment,4241,CCTV INSTALLATION AS PER ASSET TYPE 4 X18 RVC TOO BE INSTALLED AT SOUTH RIBBLE DEPOT AS AGREED WITH NAME REDACTED TO BE INSTALLE,28/02/2024,496544,1604.56,Revenue,Contel LTD,0
South Ribble Borough Council,http://statistics.data.gov.uk/id/local-authority/30UE,Capital,Cap Vehicles,C440,30x 360ltr 0300 grey bins at 38.73,07/02/2024,494975,1361.9,Revenue,Contenur UK Ltd,0
South Ribble Borough Council,http://statistics.data.gov.uk/id/local-authority/30UE,Capital,Capital Grant,C570,DFG WORK FOR LEVEL ACCESS SHOWER ADAPTATION AT ADDRESS REDACTED AS PER SRBC PLANS AND QUOTE SUPPLIED OF 6100.,21/02/2024,496098,6260,Revenue,Croston Plumbing & Heating Ltd,0
South Ribble Borough Council,http://statistics.data.gov.uk/id/local-authority/30UE,Capital,Capital Grant,C570,"DFG WORK FOR ADAPTATION FOR A LEVEL ACCESS SHOWER AT ADDRESS REDACTED AS PER SRBC PLANS AND QUOTE SUPPLIED OF 5800.00, 50",21/02/2024,496099,2900,Revenue,Croston Plumbing & Heating Ltd,0
South Ribble Borough Council,http://statistics.data.gov.uk/id/local-authority/30UE,Capital,Capital Grant,C570,"DFG WORK FOR ADAPTATION FOR A LEVEL ACCESS SHOWER AT ADDRESS REDACTED AS PER SRBC PLANS AND QUOTE SUPPLIED OF 5650.00, 50% ",21/02/2024,496101,2825,Revenue,Croston Plumbing & Heating Ltd,0
South Ribble Borough Council,http://statistics.data.gov.uk/id/local-authority/30UE,Short Term Debtors,Amount Paid,30,Cycle scheme for NAME REDACTED,14/02/2024,495834,1000,Revenue,CYCLESCHEME CO  UK,0
South Ribble Borough Council,http://statistics.data.gov.uk/id/local-authority/30UE,Recreation & Sport,Telephones-Rental,4261,,07/02/2024,495326,533.68,Revenue,Daisy Communications LTD,0
South Ribble Borough Council,http://statistics.data.gov.uk/id/local-authority/30UE,Community Development,Miscellaneous Expenses,4851,0,21/02/2024,496175,500,Revenue,Danielle Mensah,0
South Ribble Borough Council,http://statistics.data.gov.uk/id/local-authority/30UE,Development Control,Operational Equip & Tools,4010,"2 x Hytera GC-55032GB with infrared night version, 2K mini body camera, UK power adaptor @ 240.00 each, 2 x Hytera GC-550 klickf",28/02/2024,496014,580,Revenue,DCS 2 Way Radio Ltd,0
South Ribble Borough Council,http://statistics.data.gov.uk/id/local-authority/30UE,Community Development,Miscellaneous Expenses,4851,0,21/02/2024,496186,500,Revenue,Debbie Moore,0
South Ribble Borough Council,http://statistics.data.gov.uk/id/local-authority/30UE,Central Support Services,Materials General,4040,"1x seat belt, 1x window regulator, 1x beacon, VIN REDACTED, JFC21321",28/02/2024,496154,659.62,Revenue,DENNIS EAGLE LTD,0
South Ribble Borough Council,http://statistics.data.gov.uk/id/local-authority/30UE,General Government Grants,Miscellaneous Expenses,4851,ctr - 2023 receipts,28/02/2024,496265,35307,Revenue,Department for Communities and Local Government,0
South Ribble Borough Council,http://statistics.data.gov.uk/id/local-authority/30UE,Central Support Services,Reactive Repair & Maintenance,2020,"ATTENDED SITE ON TO LOOK AT ISSUES WITH 3X DOORS. WENT TO THE WHOLESALERS FOR MATERIALS. STRIPPED DOWN EACH DOOR, CLEANED AND REG",21/02/2024,496015,516.7,Revenue,DES Electrical Services Ltd,0
South Ribble Borough Council,http://statistics.data.gov.uk/id/local-authority/30UE,Central Support Services,External Contractors Charges,4570,"Supply & Fit Windscreen, VIN REDACTED, JFC21096",28/02/2024,496492,726,Revenue,DIRECT VEHICLE GLASS,0
South Ribble Borough Council,http://statistics.data.gov.uk/id/local-authority/30UE,Surplus or Deficit on Trading,Electricity,2303,1/4 to 6/11/23,07/02/2024,495614,11964.76,Revenue,E On   A-3059D946,0
South Ribble Borough Council,http://statistics.data.gov.uk/id/local-authority/30UE,Surplus or Deficit on Trading,Electricity,2303,7/1 to 31/1/24,28/02/2024,496274,736.55,Revenue,E On   A-3059D946,0
South Ribble Borough Council,http://statistics.data.gov.uk/id/local-authority/30UE,Community Development,Royalties,4854,0,21/02/2024,496195,500,Revenue,Elisabeth Sawle,0
South Ribble Borough Council,http://statistics.data.gov.uk/id/local-authority/30UE,Capital,Cap Contract Payment,C230,"BREEAM AP consultancy services RIBA Stage 3-6 - Jubilee Gardens Extra Care Project, West Paddock in Leyland",21/02/2024,494932,1150,Revenue,Energy Council Ltd is a Trading Name of EC Energy,0
South Ribble Borough Council,http://statistics.data.gov.uk/id/local-authority/30UE,Central Support Services,Applications Systems,4248,"Service Designer/Customer Portal/Staff Portal - Renewal charge, Payments - Renewal charge, Premium Service: UK Contact Us - Renew",28/02/2024,494039,38310,Revenue,FIRMSTEP,0
South Ribble Borough Council,http://statistics.data.gov.uk/id/local-authority/30UE,Service Management & Support,Petrol,3131,Annual Card Fee,14/02/2024,496076,600,Revenue,Fuel Card Services,0
South Ribble Borough Council,http://statistics.data.gov.uk/id/local-authority/30UE,Central Support Services,Materials General,4040,1 Spiker Set VIN REDACTED JFC20886,21/02/2024,496116,1881.6,Revenue,GIBSONS GARDEN MACHINERY LTD,0
South Ribble Borough Council,http://statistics.data.gov.uk/id/local-authority/30UE,Corporate Management,Merchant Charges,4816,30/11/2023,29/02/2024,495665,1294.49,Revenue,GLOBAL PAYMENTS (GPUK LLP),0
South Ribble Borough Council,http://statistics.data.gov.uk/id/local-authority/30UE,Corporate Management,Merchant Charges,4816,30/11/2023,29/02/2024,495667,2828.79,Revenue,GLOBAL PAYMENTS (GPUK LLP),0
South Ribble Borough Council,http://statistics.data.gov.uk/id/local-authority/30UE,Corporate Management,Merchant Charges,4816,31/12/2023,29/02/2024,496363,1010.74,Revenue,GLOBAL PAYMENTS (GPUK LLP),0
South Ribble Borough Council,http://statistics.data.gov.uk/id/local-authority/30UE,Corporate Management,Merchant Charges,4816,31/12/2023,29/02/2024,496365,2211.58,Revenue,GLOBAL PAYMENTS (GPUK LLP),0
South Ribble Borough Council,http://statistics.data.gov.uk/id/local-authority/30UE,Central Support Services,Reactive Repair & Maintenance,2020,Civic Centre - Install new 3 bar pressure relief valves (including calibration and test certificate),07/02/2024,495711,1843,Revenue,GOS Heating Ltd,0
South Ribble Borough Council,http://statistics.data.gov.uk/id/local-authority/30UE,Community Development,External Catering Charges,4575,"HAF Winter Catering - 27th Dec 23 & 2nd to 5th Jan 24, Lunches @ 5 each, Week 1		, Wednesday x60 = 300.00, Week 2		, Tuesday x7",07/02/2024,495634,1725,Revenue,Halls Bakery Limited,0
South Ribble Borough Council,http://statistics.data.gov.uk/id/local-authority/30UE,Recreation & Sport,Licences Fee General,488B,fee qtr 4,14/02/2024,495930,1000,Revenue,HIGHER WALTON COMMUNITY CENTRE,0
South Ribble Borough Council,http://statistics.data.gov.uk/id/local-authority/30UE,Short Term Creditors,Amount Received,140,,07/02/2024,495660,685,Revenue,HM REVENUE & CUSTOMS,0
South Ribble Borough Council,http://statistics.data.gov.uk/id/local-authority/30UE,Short Term Creditors,Amount Paid,30,HMRC Income Tax - Jan 24 Deductions from Payroll,14/02/2024,495950,124120.3,Revenue,HM REVENUE & CUSTOMS 065PV00107808,0
South Ribble Borough Council,http://statistics.data.gov.uk/id/local-authority/30UE,Unapportionable Central OHeads,Apprentice Levy,1111,HMRC App Levy - Jan 24 Deductions from Payroll,14/02/2024,495951,4088,Revenue,HM REVENUE & CUSTOMS 065PV00107808,0
South Ribble Borough Council,http://statistics.data.gov.uk/id/local-authority/30UE,Short Term Creditors,Amount Paid,30,HMRC NI EE's - Jan 24 Deductions from Payroll,14/02/2024,495952,58897.82,Revenue,HM REVENUE & CUSTOMS 065PV00107808,0
South Ribble Borough Council,http://statistics.data.gov.uk/id/local-authority/30UE,Short Term Creditors,Amount Paid,30,HMRC NI ER's - Jan 24 Deductions from Payroll,14/02/2024,495953,100456.48,Revenue,HM REVENUE & CUSTOMS 065PV00107808,0
South Ribble Borough Council,http://statistics.data.gov.uk/id/local-authority/30UE,Short Term Creditors,Amount Paid,30,HMRC Student Loans - Jan 24 Deductions from Payroll,14/02/2024,495955,4309,Revenue,HM REVENUE & CUSTOMS 065PV00107808,0
South Ribble Borough Council,http://statistics.data.gov.uk/id/local-authority/30UE,Short Term Creditors,Amount Paid,30,HMRC Post Grad Loans- Jan 24 Deductions from Payroll,14/02/2024,495956,511,Revenue,HM REVENUE & CUSTOMS 065PV00107808,0
South Ribble Borough Council,http://statistics.data.gov.uk/id/local-authority/30UE,Capital,Misc Capital Payments,C234,"Replacement ALL External window(s)/door(s), External/internal decoration, UPVC facia/soffit install, Guttering/downspout replacem",14/02/2024,494558,11345.3,Revenue,Holden Building Solutions Limited,0
South Ribble Borough Council,http://statistics.data.gov.uk/id/local-authority/30UE,Capital,Misc Capital Payments,C234,LABOUR,14/02/2024,494558,3317,Revenue,Holden Building Solutions Limited,0
South Ribble Borough Council,http://statistics.data.gov.uk/id/local-authority/30UE,Community Development,Cash Collection Charges Car Parks,4855,0,21/02/2024,496196,1125,Revenue,Ian Dockney,0
South Ribble Borough Council,http://statistics.data.gov.uk/id/local-authority/30UE,Capital,Cap Contract Payment,C230,Leyland Town Deal - EA & QS for NFM Iddon Factory Demolition,07/02/2024,491927,2750,Revenue,Identity Consult Ltd,0
South Ribble Borough Council,http://statistics.data.gov.uk/id/local-authority/30UE,Capital,Cap Contract Payment,C230,Additional Services as per agreement wit NAME REDACTED,07/02/2024,492741,2750,Revenue,Identity Consult Ltd,0
South Ribble Borough Council,http://statistics.data.gov.uk/id/local-authority/30UE,Capital,Cap Contract Payment,C230,Additional Services as per agreement wit NAME REDACTED,07/02/2024,493698,2750,Revenue,Identity Consult Ltd,0
South Ribble Borough Council,http://statistics.data.gov.uk/id/local-authority/30UE,Capital,Cap Contract Payment,C230,Additional Services as per agreement wit NAME REDACTED,07/02/2024,494494,2750,Revenue,Identity Consult Ltd,0
South Ribble Borough Council,http://statistics.data.gov.uk/id/local-authority/30UE,Capital,Cap Contract Payment,C230,Additional Services as per agreement wit NAME REDACTED,07/02/2024,495120,2750,Revenue,Identity Consult Ltd,0
South Ribble Borough Council,http://statistics.data.gov.uk/id/local-authority/30UE,Central Support Services,Software Licensing,4243,canvass 2023 final figures,07/02/2024,495833,783.25,Revenue,IDOX PLC,0
South Ribble Borough Council,http://statistics.data.gov.uk/id/local-authority/30UE,Central Support Services,IT Consumables,413A,Half Day Consultancy,28/02/2024,496272,600,Revenue,IDOX PLC,0
South Ribble Borough Council,http://statistics.data.gov.uk/id/local-authority/30UE,Central Support Services,Franked Post,4292,Imail hybrid standard mono letter,21/02/2024,495802,762.66,Revenue,Imail Comms Limited,0
South Ribble Borough Council,http://statistics.data.gov.uk/id/local-authority/30UE,Central Support Services,Franked Post,4292,Imail hybrid standard mono letter,28/02/2024,495983,990.73,Revenue,Imail Comms Limited,0
South Ribble Borough Council,http://statistics.data.gov.uk/id/local-authority/30UE,Central Support Services,Franked Post,4292,Imail hybrid standard mono letter,28/02/2024,496025,1647.67,Revenue,Imail Comms Limited,0
South Ribble Borough Council,http://statistics.data.gov.uk/id/local-authority/30UE,Corporate Management,External Contractors Charges,4570,"Inspired Energy - Utility Management and Procurement services, January 2024 - March 2024, 14,000 per annum, Billed Quarterly",28/02/2024,496335,3500,Revenue,INSPIRED ENERGY SOLUTIONS LIMITED,0
South Ribble Borough Council,http://statistics.data.gov.uk/id/local-authority/30UE,Central Support Services,Hiring Expenses,3212,Continued hire of VIN REDACTED 01/10/2023 - 31/10/2023,07/02/2024,495303,1099.67,Revenue,Intack Self Drive Ltd,0
South Ribble Borough Council,http://statistics.data.gov.uk/id/local-authority/30UE,Central Support Services,Hiring Expenses,3212,Continued hire of VIN REDACTED 01/01/2024 - 31/01/2024,07/02/2024,495536,962.22,Revenue,Intack Self Drive Ltd,0
South Ribble Borough Council,http://statistics.data.gov.uk/id/local-authority/30UE,Capital,Misc Capital Payments,C234,"Contract award - Greens dance studio refurbishment, following full tender exercise and procurement. , As per ITQ & SOW., Order as",07/02/2024,495105,25682.22,Revenue,J & K Construction Limited,0
South Ribble Borough Council,http://statistics.data.gov.uk/id/local-authority/30UE,Capital,Misc Capital Payments,C234,"Contract award - Greens dance studio refurbishment, following full tender exercise and procurement. , As per ITQ & SOW., Order as",28/02/2024,495837,45830.75,Revenue,J & K Construction Limited,0
South Ribble Borough Council,http://statistics.data.gov.uk/id/local-authority/30UE,Capital,Cap Contract Payment,C230,"Resident Giveaway 1, , 50x Birch Betula pendula 60/90 @ 0.78 	, 150xCrab Apple Malus sylvestris 60/90 @ 0.98 	 , 200xRowan Sorb",07/02/2024,495752,2650,Revenue,J A JONES & SONS,0
South Ribble Borough Council,http://statistics.data.gov.uk/id/local-authority/30UE,Capital,Cap Contract Payment,C230,"Resident Giveaway 2, , 50x Birch Betula pendula 60/90 @ 0.78 	, 150xCrab Apple Malus sylvestris 60/90 @ 0.98 	 , 200xRowan Sorb",07/02/2024,495752,2650,Revenue,J A JONES & SONS,0
South Ribble Borough Council,http://statistics.data.gov.uk/id/local-authority/30UE,Capital,Cap Contract Payment,C230,"Lostock Hall Academy	 	20th January, 	 	 , 450x Hawthorn Crataegus monogyna 60/90	@0.72 	, 400x Blackthorn Prunus spinosa 60/90	",07/02/2024,495752,817,Revenue,J A JONES & SONS,0
South Ribble Borough Council,http://statistics.data.gov.uk/id/local-authority/30UE,Capital,Cap Contract Payment,C230,"Cop Lane School	 	9th February	, 	 , 300x Beech Fagus sylvatica	60/90 @0.90 	, 300x Hornbeam Carpinus betulus	60/90 @ 0.90 	, ,",07/02/2024,495752,605,Revenue,J A JONES & SONS,0
South Ribble Borough Council,http://statistics.data.gov.uk/id/local-authority/30UE,Open Spaces,Plants Trees & Shrubs,4046,"1 x English Oak Tree , Delivery Wednesday 22nd November 2023 (am) to Worden Park Main Car Park, Please contact Dan Rigbye 07944 6",07/02/2024,495803,515,Revenue,J A JONES & SONS,0
South Ribble Borough Council,http://statistics.data.gov.uk/id/local-authority/30UE,Open Spaces,Materials General,4040,Replacement of the signage at the entrance of St. James Gardens. supply and fit in dark granite,28/02/2024,496504,2800,Revenue,JCB Price & Son Ltd,0
South Ribble Borough Council,http://statistics.data.gov.uk/id/local-authority/30UE,Community Development,Miscellaneous Expenses,4851,0,21/02/2024,496189,500,Revenue,John Bell,0
South Ribble Borough Council,http://statistics.data.gov.uk/id/local-authority/30UE,Community Development,Miscellaneous Expenses,4851,0,21/02/2024,496192,500,Revenue,John House,0
South Ribble Borough Council,http://statistics.data.gov.uk/id/local-authority/30UE,Community Development,Miscellaneous Expenses,4851,0,21/02/2024,496187,500,Revenue,Keith Rutherford,0
South Ribble Borough Council,http://statistics.data.gov.uk/id/local-authority/30UE,Community Development,Professional Fees,4510,"HAF Delivery Winter 23/24 - 160 places, Lunches @ 5 each = 800, Half payment of 160 places @ 5 each = 800, 121 places booked ",07/02/2024,495636,2205,Revenue,Kick On Football Coaching,0
South Ribble Borough Council,http://statistics.data.gov.uk/id/local-authority/30UE,Regulatory Services,Poisons & Baits,4041,"2 x boxes of vertox @ 69.30 each, 4 x boxes of Ratimor 100g blocks @ 27.54 each, 4x boxes of AF Atom Rat bait stations @21.00 ",14/02/2024,495806,638.76,Revenue,KILLGERM CHEMICALS LTD,0
South Ribble Borough Council,http://statistics.data.gov.uk/id/local-authority/30UE,Capital,Cap Contract Payment,C230,"Design and Build of New Toddler & Junior Playground, Birch Avenue, Penwortham",07/02/2024,495780,3609.92,Revenue,KOMPAN LTD,0
South Ribble Borough Council,http://statistics.data.gov.uk/id/local-authority/30UE,Corporate Management,Consultancy Fees,4541,"Pension Fund , Mercer`s Actuarial Services - Accounting Schedule for Year ending 31st March 2022 & Audit Q&A Paper - 522.35, Upd",28/02/2024,496432,4857.35,Revenue,LANCASHIRE COUNTY COUNCIL PENSION FUND,0
South Ribble Borough Council,http://statistics.data.gov.uk/id/local-authority/30UE,Capital,Misc Capital Payments,C234,section 278 agreement,28/02/2024,495155,1375,Revenue,LANCS COUNTY COUNCIL,0
South Ribble Borough Council,http://statistics.data.gov.uk/id/local-authority/30UE,Community Development,External Catering Charges,4575,"LCC- South Ribble Borough Council (Supermarket vouchers Christmas 2023 CINV0143), x400 @ 25 each, , Total = 10,000 ex vat",07/02/2024,495638,10000,Revenue,LANCS COUNTY COUNCIL,0
South Ribble Borough Council,http://statistics.data.gov.uk/id/local-authority/30UE,Community Development,External Catering Charges,4575,"LCC- South Ribble Borough Council (Supermarket vouchers Christmas 2023 #2 CINV0154), x60 @ 25 each, , Total = 1,500 ex vat",07/02/2024,495639,1500,Revenue,LANCS COUNTY COUNCIL,0
South Ribble Borough Council,http://statistics.data.gov.uk/id/local-authority/30UE,Regulatory Services,External Contractors Charges,4570,The quote for the project (AIB ceiling removal in a school kitchen) at ADDRESS REDACTED - per NAME REDACTED,21/02/2024,495900,4955.83,Revenue,LANCS COUNTY COUNCIL,0
South Ribble Borough Council,http://statistics.data.gov.uk/id/local-authority/30UE,Parking Services,External Contractors Charges,4570,"Description � , Maintenance & Energy charges - Street & Car Park lighting managed by LCC � April 2023 � December 2023., All futur",21/02/2024,495975,10075.91,Revenue,LANCS COUNTY COUNCIL,0
South Ribble Borough Council,http://statistics.data.gov.uk/id/local-authority/30UE,Parking Services,Materials General,4040,Disconnect feeder pillar electric supply- West Paddock,14/02/2024,495979,600,Revenue,LANCS COUNTY COUNCIL,0
South Ribble Borough Council,http://statistics.data.gov.uk/id/local-authority/30UE,Local Land Charges,L C C General,4530,Land Charges - December 2023,28/02/2024,496289,536,Revenue,LANCS COUNTY COUNCIL,0
South Ribble Borough Council,http://statistics.data.gov.uk/id/local-authority/30UE,Local Land Charges,L C C General,4530,Land Charges - January 2024,28/02/2024,496329,974,Revenue,LANCS COUNTY COUNCIL,0
South Ribble Borough Council,http://statistics.data.gov.uk/id/local-authority/30UE,Capital,Cap Contract Payment,C230,"Jubilee Gardens ProjectLCCAdvance payment of estimated design check and inspection for the section 278 works at West Paddock, Jub",28/02/2024,496554,11487.2,Revenue,LANCS COUNTY COUNCIL,0
South Ribble Borough Council,http://statistics.data.gov.uk/id/local-authority/30UE,Central Support Services,Materials General,4040,"turbo actuator, VIN REDACTED, JFC 21302",14/02/2024,496030,1375,Revenue,LANCS DAF,0
South Ribble Borough Council,http://statistics.data.gov.uk/id/local-authority/30UE,Central Support Services,Materials General,4040,"1x cab lock, 1x cooler pipe, VIN REDACTED, JFC21274",21/02/2024,496121,1042.87,Revenue,LANCS DAF,0
South Ribble Borough Council,http://statistics.data.gov.uk/id/local-authority/30UE,Central Support Services,Materials General,4040,"2x brake chambers & 1x caliper, VIN REDACTED, JFC21316",28/02/2024,496142,1099,Revenue,LANCS DAF,0
South Ribble Borough Council,http://statistics.data.gov.uk/id/local-authority/30UE,Central Support Services,Materials General,4040,"Filter kit, Gear box filters, Crank case filter, fuel filter, n/s headlight, brake pad rubber, 2x air tank drains, , VIN REDACTED NAME REDACTED",28/02/2024,496256,941.65,Revenue,LANCS DAF,0
South Ribble Borough Council,http://statistics.data.gov.uk/id/local-authority/30UE,Central Support Services,Materials General,4040,"DPF clamps and gaskets, nox sensor, VIN REDACTED, JFC 21348",28/02/2024,496287,718.98,Revenue,LANCS DAF,0
South Ribble Borough Council,http://statistics.data.gov.uk/id/local-authority/30UE,Central Support Services,Materials General,4040,"Bin 469 ball joint x2, Bin 541 brake pads x3",28/02/2024,496347,583.28,Revenue,LANCS DAF,0
South Ribble Borough Council,http://statistics.data.gov.uk/id/local-authority/30UE,Capital,Cap Contract Payment,C230,"Construction of pocket park at Mounsey Road, Bamber Bridge",14/02/2024,495830,3904.58,Revenue,LANDSCAPE ENGINEERING LIMITED,0
South Ribble Borough Council,http://statistics.data.gov.uk/id/local-authority/30UE,Community Development,External Catering Charges,4575,"HAF Winter Catering - 2nd to 5th Jan 24, Lunches @ 5.50 each, Tuesday x105 = 577.50, Wednesday x95 = 522.50, Thursday x95 = 5",07/02/2024,495643,2090,Revenue,Laurels Catering,0
South Ribble Borough Council,http://statistics.data.gov.uk/id/local-authority/30UE,Open Spaces,Materials General,4040,"8 x Open water signs - Di-bond with rails - 600 x 525mm =  68.10 each, , 8x Post and baseplate - galvanised steel - 76mm x 3m =",21/02/2024,496091,1191.84,Revenue,LCC SIGN SHOP,0
South Ribble Borough Council,http://statistics.data.gov.uk/id/local-authority/30UE,Community Development,Miscellaneous Expenses,4851,3 x single beds East Street. Refugee Budget Transfer,07/02/2024,495757,650,Revenue,Leyland Beds and Furniture Ltd,0
South Ribble Borough Council,http://statistics.data.gov.uk/id/local-authority/30UE,Central Support Services,Planned Annual Repair & Maintenance,2021,"Manufacture and install, 3x Galvanised lampposts. As shown on site and drawing provide., Following health and safety visit at , ",07/02/2024,495726,1034,Revenue,Leyland Lane Wrought Iron Gates & Railings,0
South Ribble Borough Council,http://statistics.data.gov.uk/id/local-authority/30UE,Central Support Services,Subscriptions General,4721,"Financial Intelligence Toolkit 2024/25: Collection Fund Suite 7,995; MTRR 2,095; Funding Briefings and monthly Hot Topic webina",14/02/2024,496067,12735,Revenue,LG FUTURES,0
South Ribble Borough Council,http://statistics.data.gov.uk/id/local-authority/30UE,Central Support Services,DVLA Checks,1711,Driver Management Fee and Electronic Fee - Invoice No 28635,14/02/2024,495392,558.42,Revenue,LICENCE BUREAU LIMITED,0
South Ribble Borough Council,http://statistics.data.gov.uk/id/local-authority/30UE,Central Support Services,Occupational Health,1408,Counselling for staff in November 2023,14/02/2024,495541,630,Revenue,Livewell Counselling Service,0
South Ribble Borough Council,http://statistics.data.gov.uk/id/local-authority/30UE,Central Support Services,Occupational Health,1408,Counselling for staff in January 2024,28/02/2024,496559,800,Revenue,Livewell Counselling Service,0
South Ribble Borough Council,http://statistics.data.gov.uk/id/local-authority/30UE,Capital,Cap Contract Payment,C230,Lostock Hall Academy Loan for leisure improvements,14/02/2024,495924,100000,Revenue,LOSTOCK HALL ACADEMY,0
South Ribble Borough Council,http://statistics.data.gov.uk/id/local-authority/30UE,Capital,Cap Contract Payment,C230,Lostock Hall Academy Leisure Local Grant for leisure improvements,14/02/2024,495925,200000,Revenue,LOSTOCK HALL ACADEMY,0
South Ribble Borough Council,http://statistics.data.gov.uk/id/local-authority/30UE,Central Support Services,Materials General,4040,"BLACK SACKS `KEEP SOUTH RIBBLE TIDY` in white , 455x760x990-250g Bi Modal Super plus - Keep South Ribble Tidy, 118 per 1000 bags",14/02/2024,495810,7080,Revenue,MacFarlane Group UK Limited,0
South Ribble Borough Council,http://statistics.data.gov.uk/id/local-authority/30UE,Capital,Capital Grant,C570,DFG WORKS FOR LEVEL ACCESS BATHROOM AND RAMP AT ADDRESS REDACTED NEW PROGRESS PROPERTY SO 50% OF TOTAL QUOTE,14/02/2024,496033,7508.67,Revenue,MAHONEY CONTRACTORS LTD,0
South Ribble Borough Council,http://statistics.data.gov.uk/id/local-authority/30UE,Capital,Capital Grant,C570,"DFG WORKS FOR LEVEL ACCESS BATHROOM AT ADDRESS REDACTED, PENWORTHAM NEW PROGRESS PROPERTY SO 50% OF TOTAL QUOTE TO BE PAID TOTAL QU",21/02/2024,496088,19234.53,Revenue,MAHONEY CONTRACTORS LTD,0
South Ribble Borough Council,http://statistics.data.gov.uk/id/local-authority/30UE,Capital,Capital Grant,C570,DFG WORKS FOR LEVEL ACCESS BATHROOM AT ADDRESS REDACTED NEW PROGRESS PROPERTY SO 50% OF TOTAL QUOTE TO BE PAID ,21/02/2024,496089,3878.81,Revenue,MAHONEY CONTRACTORS LTD,0
South Ribble Borough Council,http://statistics.data.gov.uk/id/local-authority/30UE,Capital,Capital Grant,C570,DFG WORKS FOR LEVEL ACCESS BATHROOM AND RAMP AT ADDRESS REDACTED NEW PROGRESS PROPERTY SO 50% OF TOTAL QUOTE TO ,21/02/2024,496090,6029.7,Revenue,MAHONEY CONTRACTORS LTD,0
South Ribble Borough Council,http://statistics.data.gov.uk/id/local-authority/30UE,Capital,Capital Grant,C570,DFG WORKS FOR DOOR AMENDMENTS. LEVEL THRESHOLD AND LEVEL ACCESS SHOWER AT ADDRESS REDACTED -NEW PROGRESS PROP,28/02/2024,496560,4483.55,Revenue,MAHONEY CONTRACTORS LTD,0
South Ribble Borough Council,http://statistics.data.gov.uk/id/local-authority/30UE,Capital,Capital Grant,C570,DFG WORKS FOR LEVEL ACCESS BATHROOM AT ADDRESS REDACTED NEW PROGRESS PROPERTY SO 50% OF TOTAL QUOTE TO BE PAID ,28/02/2024,496588,3492.29,Revenue,MAHONEY CONTRACTORS LTD,0
South Ribble Borough Council,http://statistics.data.gov.uk/id/local-authority/30UE,Capital,Cap Contract Payment,C230,Leyland Town Deal - Structural Surveys for Boxer Place & Balfour Court,07/02/2024,491148,1800,Revenue,Marston & Grundy LLP,0
South Ribble Borough Council,http://statistics.data.gov.uk/id/local-authority/30UE,Suspended Items,Agency Staff,1121,Appointment of (NAME REDACTED) 22.08.2023  21.0.2.2024,07/02/2024,495840,2375,Revenue,Michael Page International Recruitment Limited,0
South Ribble Borough Council,http://statistics.data.gov.uk/id/local-authority/30UE,Suspended Items,Agency Staff,1121,Appointment of (NAME REDACTED) 22.08.2023  21.0.2.2024,14/02/2024,495963,2375,Revenue,Michael Page International Recruitment Limited,0
South Ribble Borough Council,http://statistics.data.gov.uk/id/local-authority/30UE,Suspended Items,Agency Staff,1121,Appointment of (NAME REDACTED) 22.08.2023  21.0.2.2024,21/02/2024,496114,2375,Revenue,Michael Page International Recruitment Limited,0
South Ribble Borough Council,http://statistics.data.gov.uk/id/local-authority/30UE,Suspended Items,Agency Staff,1121,Appointment of (NAME REDACTED) 22.08.2023  21.0.2.2024,21/02/2024,496138,2375,Revenue,Michael Page International Recruitment Limited,0
South Ribble Borough Council,http://statistics.data.gov.uk/id/local-authority/30UE,Recreation & Sport,Reactive Repair & Maintenance,2020,cancelled by credit 1225,07/02/2024,492141,3800,Revenue,Mick Bamber,0
South Ribble Borough Council,http://statistics.data.gov.uk/id/local-authority/30UE,Recreation & Sport,Reactive Repair & Maintenance,2020,"Apply seamless gutter, approx. 20LM/ when fixing the guttering apply timbers to facia backing, allowing guttering to step out and",07/02/2024,492186,2400,Revenue,Mick Bamber,0
South Ribble Borough Council,http://statistics.data.gov.uk/id/local-authority/30UE,Central Support Services,Intruder Alarm,2035,"This is for the maintenance and monitoring of the fire alarm @ Hurst Grange Park as per NAME REDACTED request , 580.00",21/02/2024,496034,580,Revenue,MMP FIRE AND SECURITY CENTRE,0
South Ribble Borough Council,http://statistics.data.gov.uk/id/local-authority/30UE,Central Support Services,Operational Equip & Tools,4010,"Attended site to open up compressor for the insurance assessor, carried out full service of HPC SK25 compressor",28/02/2024,496294,590.38,Revenue,MRB Workshop Services Ltd,0
South Ribble Borough Council,http://statistics.data.gov.uk/id/local-authority/30UE,Central Support Services,Materials General,4040,"4x hydraulic filter kits Bin No. G027, 4x pins Bin No. G057",21/02/2024,495646,1483.34,Revenue,MRD Parts LTD,0
South Ribble Borough Council,http://statistics.data.gov.uk/id/local-authority/30UE,Capital,Capital Grant,C570,"DFG WORK FOR ADAPTATION FOR A LEVEL ACCESS SHOWER AT NAME REDACTED AS PER SRBC PLANS AND QUOTE SUPPLIED OF 6810.00, 5",21/02/2024,496137,3405,Revenue,MSG Building and Construction Ltd,0
South Ribble Borough Council,http://statistics.data.gov.uk/id/local-authority/30UE,Community Development,Miscellaneous Expenses,4851,0,21/02/2024,496188,500,Revenue,Muriel Laws,0
South Ribble Borough Council,http://statistics.data.gov.uk/id/local-authority/30UE,Central Support Services,IT Consumables,413A,"MHJF3B/A 50 Apple 20W USB-C Power Adapter  14.51  725.50, MM0A3ZM/A 80 Apple MM0A3ZM/A lightning cable 1 m White  14.35  1,14",07/02/2024,495406,4725.3,Revenue,MYPREMIER LTD,0
South Ribble Borough Council,http://statistics.data.gov.uk/id/local-authority/30UE,Community Development,Arts Staffing Costs,4856,0,28/02/2024,496197,825,Revenue,Nathan Kozlow,0
South Ribble Borough Council,http://statistics.data.gov.uk/id/local-authority/30UE,Homelessness,Temporary Accommodation,5311,"Purchase order for National Hotel Rooms trading as Purple Roomz in Bamber Bridge., , We now owe 19,817.83 for rooms booked betwe",28/02/2024,496242,11448.61,Revenue,National Hotel Rooms Ltd t/a Purple Roomz,0
South Ribble Borough Council,http://statistics.data.gov.uk/id/local-authority/30UE,Community Development,Temporary Accommodation,5311,"Purchase order for National Hotel Rooms trading as Purple Roomz in Bamber Bridge., , We now owe 19,817.83 for rooms booked betwe",28/02/2024,496242,8369.22,Revenue,National Hotel Rooms Ltd t/a Purple Roomz,0
South Ribble Borough Council,http://statistics.data.gov.uk/id/local-authority/30UE,Central Support Services,Computer Equipment,4241,N4Q-JSZY-7556 V7,14/02/2024,496068,9360,Revenue,Node4,0
South Ribble Borough Council,http://statistics.data.gov.uk/id/local-authority/30UE,Central Support Services,Computer Equipment,4241,N4Q-JSZY-7556 V7,14/02/2024,496069,2916,Revenue,Node4,0
South Ribble Borough Council,http://statistics.data.gov.uk/id/local-authority/30UE,Community Development,Miscellaneous Expenses,4851,East Street Items Washing Machine and Fridge Freezer. Refugee Budget Transfer,14/02/2024,495908,794,Revenue,NORTHWEST DOMESTIC SERVICES,0
South Ribble Borough Council,http://statistics.data.gov.uk/id/local-authority/30UE,Parking Services,Parking Attendants,4514,"Variable Fee Car Park Enforcement , JANUARY 2024- Variable Recharge , Items",28/02/2024,496252,2263.2,Revenue,NSL LTD,0
South Ribble Borough Council,http://statistics.data.gov.uk/id/local-authority/30UE,Recreation & Sport,Planned Annual Repair & Maintenance,2021,"Penwortham Leisure Centre	as per NAME REDACTED request , �	Clean aco channels , �	Replace missing aco drain lids, �	Repair broken concret",07/02/2024,495842,500,Revenue,Oakley Landscaping Ltd,0
South Ribble Borough Council,http://statistics.data.gov.uk/id/local-authority/30UE,Surplus or Deficit on Trading,Planned Annual Repair & Maintenance,2021,", Moss Side Football Pavillion, �	Replace x39 damaged paving slabs , �	Relay all paved areas, �	Re concrete around manhole, �	Rep",07/02/2024,495842,1004.17,Revenue,Oakley Landscaping Ltd,0
South Ribble Borough Council,http://statistics.data.gov.uk/id/local-authority/30UE,Recreation & Sport,Planned Annual Repair & Maintenance,2021,labour penwortham,07/02/2024,495842,583.33,Revenue,Oakley Landscaping Ltd,0
South Ribble Borough Council,http://statistics.data.gov.uk/id/local-authority/30UE,Recreation & Sport,Planned Annual Repair & Maintenance,2021,labour BB,07/02/2024,495842,1000,Revenue,Oakley Landscaping Ltd,0
South Ribble Borough Council,http://statistics.data.gov.uk/id/local-authority/30UE,Surplus or Deficit on Trading,Planned Annual Repair & Maintenance,2021,labour HH,07/02/2024,495842,791.67,Revenue,Oakley Landscaping Ltd,0
South Ribble Borough Council,http://statistics.data.gov.uk/id/local-authority/30UE,Surplus or Deficit on Trading,Planned Annual Repair & Maintenance,2021,labour BB toilets,07/02/2024,495842,583.33,Revenue,Oakley Landscaping Ltd,0
South Ribble Borough Council,http://statistics.data.gov.uk/id/local-authority/30UE,Recreation & Sport,Planned Annual Repair & Maintenance,2021,labour BB tennis,07/02/2024,495842,583.33,Revenue,Oakley Landscaping Ltd,0
South Ribble Borough Council,http://statistics.data.gov.uk/id/local-authority/30UE,Economic Development,Planned Annual Repair & Maintenance,2021,labour leyland market,07/02/2024,495842,583.33,Revenue,Oakley Landscaping Ltd,0
South Ribble Borough Council,http://statistics.data.gov.uk/id/local-authority/30UE,Surplus or Deficit on Trading,Planned Annual Repair & Maintenance,2021,labour,07/02/2024,495842,1166.67,Revenue,Oakley Landscaping Ltd,0
South Ribble Borough Council,http://statistics.data.gov.uk/id/local-authority/30UE,Surplus or Deficit on Trading,Planned Annual Repair & Maintenance,2021,labour hutton,07/02/2024,495842,583.33,Revenue,Oakley Landscaping Ltd,0
South Ribble Borough Council,http://statistics.data.gov.uk/id/local-authority/30UE,Recreation & Sport,Reactive Repair & Maintenance,2020,"Goods to be ordered: as per NAME REDACTED , Installation of storage within Moss Side Community Centre, Wooden storage areas with lo",14/02/2024,495911,3270,Revenue,PDP PROPERTY SERVICES LTD,0
South Ribble Borough Council,http://statistics.data.gov.uk/id/local-authority/30UE,Recreation & Sport,Reactive Repair & Maintenance,2020,Access Height Barrier Works at Tennis Centre as per NAME REDACTED request,28/02/2024,496135,4146.22,Revenue,PEERLESS FENCING LTD,0
South Ribble Borough Council,http://statistics.data.gov.uk/id/local-authority/30UE,Central Support Services,Software Licensing,4243,dragon professional anywhere 1 year subscription,07/02/2024,495854,514.29,Revenue,PHOENIX SOFTWARE LTD,0
South Ribble Borough Council,http://statistics.data.gov.uk/id/local-authority/30UE,Central Support Services,IT Consumables,413A,"Platforms - Subscription New Licence, 01429728 65297754BC02C12 705.02 4,935.14, Photoshop for Teams Subscription New Licence - ",28/02/2024,495912,4399.32,Revenue,PHOENIX SOFTWARE LTD,0
South Ribble Borough Council,http://statistics.data.gov.uk/id/local-authority/30UE,Central Support Services,External Contractors Charges,4570,"Attend site and replaced all hoses in back on , bin wagon to the sweep blade as requested, , VIN REDACTED, JFC 21342",14/02/2024,496073,555.4,Revenue,Pirtek,0
South Ribble Borough Council,http://statistics.data.gov.uk/id/local-authority/30UE,Central Support Services,Agency Staff,1121,Enforcement consultant NAME REDACTED,07/02/2024,495397,1225.5,Revenue,Planning Control & PACE Solutions,0
South Ribble Borough Council,http://statistics.data.gov.uk/id/local-authority/30UE,Central Support Services,Agency Staff,1121,Enforcement consultant NAME REDACTED,28/02/2024,495927,817,Revenue,Planning Control & PACE Solutions,0
South Ribble Borough Council,http://statistics.data.gov.uk/id/local-authority/30UE,Central Support Services,Agency Staff,1121,Enforcement consultant NAME REDACTED,28/02/2024,496038,1290,Revenue,Planning Control & PACE Solutions,0
South Ribble Borough Council,http://statistics.data.gov.uk/id/local-authority/30UE,Capital,Misc Capital Payments,C234,"1 off Folded aluminium composite tray sign, face size, 1500mm x 750mm x 50mm returns with digitally printed vinyl, graphics appli",21/02/2024,496170,545,Revenue,Poppy Signs Ltd,0
South Ribble Borough Council,http://statistics.data.gov.uk/id/local-authority/30UE,Economic Development,Operational Equip & Tools,4010,"Toilet provision for Taste of Leyland , 7 x portaloos , 3 x disabled with baby change facilities",14/02/2024,495255,852,Revenue,Portable Toilet Company Ltd,0
South Ribble Borough Council,http://statistics.data.gov.uk/id/local-authority/30UE,Capital,Capital Grant,C570,"DFG WORK FOR EQUIPMENT -BIO BIDET SEAT AT ADDRESS REDACTED AS PER QUOTE SUPPLIED OF 699.60 INC VAT, TOTAL COST 69",07/02/2024,495923,699.6,Revenue,Precision Design Services Ltd T/A PDS Hygiene,0
South Ribble Borough Council,http://statistics.data.gov.uk/id/local-authority/30UE,Short Term Creditors,Amount Paid,30,Prudential - Jan 24 Deductions from Payroll,14/02/2024,495948,900,Revenue,Prudential,0
South Ribble Borough Council,http://statistics.data.gov.uk/id/local-authority/30UE,Short Term Creditors,Amount Paid,30,Prudential - Jan 24 Deductions from Payroll,14/02/2024,495949,9875.13,Revenue,Prudential,0
South Ribble Borough Council,http://statistics.data.gov.uk/id/local-authority/30UE,Central Support Services,Computer Maintenance,4211,Konetik monthly charges for 60 vehicles for 3 months from 21.02.24 (60 evolve subscriptions),28/02/2024,496500,900,Revenue,Quartix,0
South Ribble Borough Council,http://statistics.data.gov.uk/id/local-authority/30UE,Open Spaces,External Contractors Charges,4570,To pump out silt in the catch pit at Middleforth Green rear of Hardings Garage,14/02/2024,495817,650,Revenue,RED ROSE BUILDING MAINTENANCE,0
South Ribble Borough Council,http://statistics.data.gov.uk/id/local-authority/30UE,Capital,Misc Capital Payments,C234,"Please supply and lay 17 Ton of 10mm Limestone to external areas as agreed on site with NAME REDACTED. , Cut back all perimeter shrubbery",28/02/2024,496311,1300,Revenue,RED ROSE BUILDING MAINTENANCE,0
South Ribble Borough Council,http://statistics.data.gov.uk/id/local-authority/30UE,Capital,Misc Capital Payments,C234,Material,28/02/2024,496311,900,Revenue,RED ROSE BUILDING MAINTENANCE,0
South Ribble Borough Council,http://statistics.data.gov.uk/id/local-authority/30UE,Community Development,Miscellaneous Expenses,4851,0,21/02/2024,496185,500,Revenue,Richard Lucas,0
South Ribble Borough Council,http://statistics.data.gov.uk/id/local-authority/30UE,Community Development,Miscellaneous Expenses,4851,0,21/02/2024,496182,500,Revenue,Richard Spalding,0
South Ribble Borough Council,http://statistics.data.gov.uk/id/local-authority/30UE,Community Development,Professional Fees,4510,"HAF Mobile Climbing Wall @ 325/day, x4 days. 3rd to 6th April 2023",28/02/2024,496474,1300,Revenue,RiderEvolution Ltd,0
South Ribble Borough Council,http://statistics.data.gov.uk/id/local-authority/30UE,Capital,Consultancy,C259,Principle Designer Services (RIBA 4-7) Jubilee Gardens Extra Care,07/02/2024,495777,544,Revenue,RJD Associates (NW) Limited,0
South Ribble Borough Council,http://statistics.data.gov.uk/id/local-authority/30UE,Community Development,Miscellaneous Expenses,4851,0,21/02/2024,496176,500,Revenue,Salim Malek,0
South Ribble Borough Council,http://statistics.data.gov.uk/id/local-authority/30UE,Community Development,Miscellaneous Expenses,4851,0,21/02/2024,496180,500,Revenue,Sally McDonald,0
South Ribble Borough Council,http://statistics.data.gov.uk/id/local-authority/30UE,Local Tax Collection,Bank Charges,4811,giro apr20-feb23,29/02/2024,495561,1460.77,Revenue,SANTANDER UK PLC,0
South Ribble Borough Council,http://statistics.data.gov.uk/id/local-authority/30UE,Homelessness,Temporary Accommodation,5311,"I am raising a purchase order to pay an invoice (SFM-6504, received today, 01/02/2024) from Secure FM Ltd � the company that prov",14/02/2024,495936,2097.48,Revenue,Secure FM,0
South Ribble Borough Council,http://statistics.data.gov.uk/id/local-authority/30UE,Central Support Services,Reactive Repair & Maintenance,2020,"Please supply as per NAME REDACTED request , Blast Mini Air Purifier x 2 = 758.10, CO2 monitor x 6 = 468.00",07/02/2024,495715,1055,Revenue,Smart Air UK (trading name of Airbon Ltd),0
South Ribble Borough Council,http://statistics.data.gov.uk/id/local-authority/30UE,Short Term Creditors,Amount Paid,30,Labour Councillors - Jan 24 Deductions from Payroll,14/02/2024,495946,1969.21,Revenue,SOUTH RIBBLE LABOUR PARTY LOCAL GOVERNM,0
South Ribble Borough Council,http://statistics.data.gov.uk/id/local-authority/30UE,Community Development,Professional Fees,4510,"HAF Delivery Winter 23/24 - 370 places, , Half payment of 370 places @ 5 each = 1,850, 228 places booked @ 5 each = 1,140, , ",21/02/2024,496050,2990,Revenue,South Ribble Leisure Ltd,0
South Ribble Borough Council,http://statistics.data.gov.uk/id/local-authority/30UE,Short Term Creditors,Amount Received,140,income transfer from sRBc,21/02/2024,496110,20971.36,Revenue,South Ribble Leisure Ltd,0
South Ribble Borough Council,http://statistics.data.gov.uk/id/local-authority/30UE,Service Management & Support,Diesel Fuel,3132,"17000 Ltrs Diesel @ 116.88ppl into the , feeder tank at Unit 81 Bison Place, Moss , Side key for cabinet is available from the , ",28/02/2024,496266,19286.37,Revenue,Standard Fuel Oils LtdMain,0
South Ribble Borough Council,http://statistics.data.gov.uk/id/local-authority/30UE,Capital,Capital Grant,C570,"DFG WORK TO SUPPLY AND INSTALL A STAIRLIFT AT ADDRESS REDACTED AS PER QUOTE SUPPLIED OF 6661.00, TOTAL COST 6661.00",14/02/2024,496052,6511,Revenue,Stannah Lift Services Ltd,0
South Ribble Borough Council,http://statistics.data.gov.uk/id/local-authority/30UE,Capital,Capital Grant,C570,"DFG WORK TO SUPPLY AND INSTALL A STAIRLIFT AT ADDRESS REDACTED AS PER QUOTE SUPPLIED OF 6140.00, TOTAL COST 6140.00",21/02/2024,496085,6140,Revenue,Stannah Lift Services Ltd,0
South Ribble Borough Council,http://statistics.data.gov.uk/id/local-authority/30UE,Capital,Capital Grant,C570,"DFG WORKS FOR STAIRLIFT AT ADDRESS REDACTED - QUOTE 6850.00- CUSTOMER CONTRIBUTION OF 34.78, Total Cost of grant ",21/02/2024,496086,6815.22,Revenue,Stannah Lift Services Ltd,0
South Ribble Borough Council,http://statistics.data.gov.uk/id/local-authority/30UE,Capital,Capital Grant,C570,"DFG WORKS FOR STAIRLIFT AT ADDRESS REDACTED - QUOTE 6781.00- CUSTOMER CONTRIBUTION OF 376.25, Total Cost of grant",28/02/2024,496579,5860.47,Revenue,Stannah Lift Services Ltd,0
South Ribble Borough Council,http://statistics.data.gov.uk/id/local-authority/30UE,Corporate Management,Corporate Training,1405,Leadership & Management Values Training,14/02/2024,495967,1571.25,Revenue,Sticky Change,0
South Ribble Borough Council,http://statistics.data.gov.uk/id/local-authority/30UE,Open Spaces,Miscellaneous Expenses,4851,Construction engineer and consulting fees for Penwortham Mills Reservoir for 2023/24. Works to include liaison with environment a,14/02/2024,495733,2333.66,Revenue,Stillwater Associates,0
South Ribble Borough Council,http://statistics.data.gov.uk/id/local-authority/30UE,Community Development,External Catering Charges,4575,"HAF Winter Catering - 2nd to 5th Jan 24, Lunches @ 5 each, Tuesday x90 = 450.00, Wednesday x50 = 250.00, Friday x150 = 750.00",07/02/2024,495574,1450,Revenue,Style Catering,0
South Ribble Borough Council,http://statistics.data.gov.uk/id/local-authority/30UE,Community Development,Core Fund,4861,Winter Warmth Products for Boost Fund for BB WLD Eastern Parishes,21/02/2024,495863,2451,Revenue,Sunhigh Limited,0
South Ribble Borough Council,http://statistics.data.gov.uk/id/local-authority/30UE,Capital,Cap Contract Payment,C230,"Leyland Town Deal - Additional Topography, GPR & Drainage Surveys",07/02/2024,494865,35060,Revenue,SURVEY OPERATIONS LTD,0
South Ribble Borough Council,http://statistics.data.gov.uk/id/local-authority/30UE,Community Development,Miscellaneous Expenses,4851,0,21/02/2024,496178,500,Revenue,Susan Hobson,0
South Ribble Borough Council,http://statistics.data.gov.uk/id/local-authority/30UE,Capital,Cap Contract Payment,C230,Leyland Town Deal - Site Investigation,07/02/2024,495785,5431.31,Revenue,Sutcliffe Projects Ltd,0
South Ribble Borough Council,http://statistics.data.gov.uk/id/local-authority/30UE,Capital,Cap Contract Payment,C230,Leyland Town Deal - Site Investigation,07/02/2024,495822,6153.75,Revenue,Sutcliffe Projects Ltd,0
South Ribble Borough Council,http://statistics.data.gov.uk/id/local-authority/30UE,Central Support Services,Miscellaneous Expenses,4851,Advertising in Law Society Gazette October 2023,28/02/2024,496230,1000,Revenue,THE LAW SOCIETY,0
South Ribble Borough Council,http://statistics.data.gov.uk/id/local-authority/30UE,Central Support Services,Network and Security,4247,TNPCC-STD-ANN - TNP CloudConnect Annual: Standard Deployment,07/02/2024,495575,700,Revenue,The Networking People (TNP) Ltd,0
South Ribble Borough Council,http://statistics.data.gov.uk/id/local-authority/30UE,Central Support Services,Members Subsistence,4621,NAME REDACTED - Agency worker,07/02/2024,495848,1050,Revenue,The Oyster Partnership,0
South Ribble Borough Council,http://statistics.data.gov.uk/id/local-authority/30UE,Tourism,Electricity,2303,January 2024 Worden Arts Centre,28/02/2024,496305,10522.58,Revenue,Total Gas & Power (Elec) 3006014935 - Worden Hall,0
